bitfinex-derivatives/quotes_ETHF0:USTF0_20250909
["timestamp","ask_amount","ask_price","bid_price","bid_amount"]
[1757459140935,0.5302,4314.9,4314.7,1.66752706]
[1757459141135,0.7271,4314.8,4314.7,1.66752706]
[1757459141632,0.7271,4314.8,4314.7,2.18252706]
[1757459142237,0.7271,4314.8,4314.7,2.38082706]
[1757459142832,0.2113,4314.8,4314.7,2.38082706]
[1757459143141,0.1157,4314.9,4314.8,0.7133]
[1757459143436,0.1157,4314.9,4314.8,2.3802802]
[1757459144339,0.1157,4314.9,4314.8,0.7133]
[1757459145436,0.327,4314.9,4314.8,0.7133]
[1757459145738,0.6396,4314.9,4314.8,0.7133]
[1757459150339,0.6396,4314.9,4314.8,2.3802802]
[1757459153136,0.327,4314.9,4314.8,2.3802802]
[1757459155644,0.6447,4314.9,4314.8,2.3802802]
[1757459156645,0.327,4314.9,4314.8,2.3802802]
[1757459156946,0.327,4314.9,4314.8,0.7133]
[1757459157146,0.327,4314.9,4314.8,2.38097482]
[1757459157947,0.327,4314.9,4314.8,0.7133]
[1757459158440,0.327,4314.9,4314.8,2.38105037]
[1757459158649,0.327,4314.9,4314.8,2.38104854]
[1757459159245,0.327,4314.9,4314.8,0.7133]
[1757459159847,0.327,4314.9,4314.8,2.38113152]
[1757459160247,0.327,4314.9,4314.8,0.7133]
[1757459162542,0.6447,4314.9,4314.8,0.7133]
[1757459163654,0.327,4314.9,4314.8,0.7133]
[1757459163840,0.1157,4314.9,4314.8,0.7133]
[1757459168756,0.3102,4314.9,4314.8,0.7133]
[1757459169053,1.25032305,4317.0,4316.9,0.6963]
[1757459169356,0.51567355,4317.2,4317.1,0.6963]
[1757459169558,0.51567355,4317.2,4316.0,0.1247]
[1757459169559,0.2013,4316.5,4316.4,0.6963]
[1757459169855,0.7135,4316.5,4316.4,0.6963]
[1757459170049,0.7135,4316.5,4316.4,1.02393479]
[1757459170257,0.7135,4316.5,4316.4,1.34801347]
[1757459170850,0.7135,4316.5,4316.4,1.52678258]
[1757459172445,0.7135,4316.5,4316.4,1.19914779]
[1757459172649,0.7135,4316.5,4316.4,1.52623903]
[1757459173157,0.8343,4316.5,4316.4,1.52623903]
[1757459175350,0.7135,4316.5,4316.4,1.52623903]
[1757459177660,0.00347355,4317.2,4316.9,0.7054]
[1757459177953,0.2006,4317.1,4317.0,1.66113903]
[1757459178151,0.00347355,4317.2,4317.1,0.295]
[1757459178360,0.00347355,4317.2,4317.1,1.53533903]
[1757459186255,0.1171,4319.0,4318.2,0.7054]
[1757459186457,0.4932,4318.5,4318.4,0.7054]
[1757459186759,0.4932,4318.8,4318.7,0.7054]
[1757459186963,0.9275,4318.8,4318.7,1.53533903]
[1757459187458,0.9275,4318.8,4318.7,1.54466917]
[1757459191463,0.6925,4318.8,4318.7,1.54466917]
[1757459191663,0.9275,4318.8,4318.7,1.54466917]
[1757459192774,0.7282,4318.8,4318.7,1.54466917]
[1757459193073,0.6925,4319.2,4319.1,0.4104]
[1757459193265,0.9275,4319.2,4319.1,1.03880882]
[1757459193467,0.2006,4319.2,4319.1,1.03880882]
[1757459193673,0.235,4319.2,4319.1,1.56489839]
[1757459199075,0.7282,4319.2,4319.1,1.56489839]
[1757459200983,0.9275,4319.2,4319.1,1.56489839]
[1757459204981,0.9275,4319.2,4319.1,1.56493288]
[1757459206177,0.4356,4319.2,4319.1,1.5595628]
[1757459207375,33.372,4319.3,4319.2,0.3175]
[1757459207577,33.606,4319.3,4319.2,1.5859628]
[1757459207976,33.372,4319.3,4319.2,1.5859628]
[1757459208181,33.606,4319.3,4319.2,1.5859628]
[1757459208584,34.118,4319.3,4319.2,1.5859628]
[1757459208779,34.3249,4319.3,4319.2,1.5859628]
[1757459209885,34.3249,4319.3,4319.2,1.05713366]
[1757459210086,34.3249,4319.3,4319.2,1.58559528]
[1757459214486,34.0909,4319.3,4319.2,1.58559528]
[1757459214785,34.3249,4319.3,4319.2,1.58559528]
[1757459215888,33.606,4319.3,4319.2,2.82624765]
[1757459216391,33.606,4319.3,4319.2,1.58559528]
[1757459216392,33.45542099,4319.3,4319.2,1.58559528]
[1757459216592,0.234,4319.3,4319.2,1.58559528]
[1757459216790,0.746,4319.3,4319.2,1.58559528]
[1757459218897,0.9529,4319.3,4319.2,1.58559528]
[1757459219795,0.9529,4319.3,4319.2,1.05429528]
[1757459220297,0.9529,4319.3,4319.2,1.37179528]
[1757459221398,0.9529,4319.3,4319.2,1.05429528]
[1757459222387,0.9529,4319.3,4319.2,1.58559528]
[1757459222596,0.9529,4319.3,4319.2,1.05429528]
[1757459222792,0.9529,4319.3,4319.2,0.85379528]
[1757459225508,1.18442,4319.3,4319.2,0.85379528]
[1757459225698,5.67060921,4319.3,4319.2,0.85379528]
[1757459226698,5.43908921,4319.3,4319.2,0.85379528]
[1757459226899,5.43908921,4319.3,4318.8,1.24664262]
[1757459226900,5.37120921,4319.3,4318.8,1.24664262]
[1757459227201,0.71771921,4319.2,4318.7,1.24664262]
[1757459227499,0.71771921,4319.2,4318.6,1.24664262]
[1757459227500,0.23153,4319.2,4318.6,1.24664262]
[1757459227698,0.23155,4319.1,4318.6,1.24664262]
[1757459227898,0.23154,4319.2,4318.5,1.56414262]
[1757459228092,0.4857278,4319.1,4318.3,1.24664262]
[1757459228294,0.4857278,4319.0,4318.3,1.24664262]
[1757459228495,0.7172778,4319.0,4318.2,1.56414262]
[1757459228696,0.4857278,4318.9,4318.3,0.3175]
[1757459228897,0.234,4318.8,4318.3,0.3175]
[1757459229097,0.234,4318.8,4318.4,0.3175]
[1757459229303,0.234,4318.8,4318.3,0.3175]
[1757459229797,0.234,4318.8,4318.2,1.24664262]
[1757459230004,0.234,4318.8,4318.3,0.3175]
[1757459230205,0.234,4318.8,4318.3,0.2005]
[1757459230502,33.353,4319.1,4318.6,0.3175]
[1757459230697,0.46556,4319.0,4318.7,0.3175]
[1757459230999,0.234,4319.0,4318.7,0.2005]
[1757459231191,0.234,4319.0,4318.9,0.3175]
[1757459234998,4.234,4319.0,4318.5,0.1278]
[1757459235201,0.234,4319.0,4318.6,0.3175]
[1757459235499,0.234,4319.0,4318.5,0.1278]
[1757459235796,0.234,4319.0,4318.6,0.3175]
[1757459236191,0.234,4319.0,4318.5,0.1278]
[1757459236598,0.234,4319.0,4318.6,0.3175]
[1757459236999,0.234,4319.0,4318.6,0.3093]
[1757459237500,0.234,4319.0,4318.6,0.1979]
[1757459237704,0.234,4319.0,4318.5,0.1278]
[1757459237705,0.234,4319.0,4318.8,0.3093]
[1757459238002,0.234,4319.0,4318.6,0.3093]
[1757459238192,0.234,4319.0,4318.7,0.5072]
[1757459238396,0.234,4319.0,4318.6,0.3093]
[1757459238596,0.234,4319.0,4318.6,0.5072]
[1757459238798,0.234,4319.0,4318.7,0.5072]
[1757459239105,0.234,4319.0,4318.5,0.3257]
[1757459239304,0.234,4319.0,4318.6,0.37068632]
[1757459239504,0.234,4319.0,4318.8,0.3093]
[1757459239705,0.234,4319.0,4318.8,0.5072]
[1757459239908,0.234,4319.0,4318.9,0.3093]
[1757459241911,0.234,4319.0,4318.9,0.5072]
[1757459245107,0.234,4319.0,4318.9,0.3093]
[1757459245610,0.234,4319.0,4318.9,0.5072]
[1757459246012,0.234,4319.0,4318.9,0.7039]
[1757459246307,33.353,4319.1,4319.0,0.8325]
[1757459246507,33.587,4319.1,4319.0,0.8325]
[1757459246713,33.353,4319.1,4319.0,0.8325]
[1757459246911,33.0301,4319.1,4319.0,4.8325]
[1757459247211,32.2954,4319.1,4319.0,4.8325]
[1757459251034,32.2954,4319.1,4319.0,4.7039]
[1757459251433,0.234,4319.1,4319.0,4.7039]
[1757459254035,0.5471,4319.1,4319.0,4.7039]
[1757459254537,0.3131,4319.9,4319.0,4.3946]
[1757459254735,0.234,4319.9,4319.4,1.66750607]
[1757459255237,0.6242,4319.5,4319.4,1.66750607]
[1757459255440,0.3131,4319.4,4319.3,1.66750607]
[1757459255629,0.3131,4319.3,4319.2,1.66750607]
[1757459255936,0.1168,4319.0,4318.9,1.66750607]
[1757459256136,0.4299,4319.0,4318.9,1.66750607]
[1757459257430,0.4299,4319.0,4318.8,1.66750607]
[1757459258138,0.3131,4318.9,4318.8,1.66750607]
[1757459259343,0.3131,4319.3,4318.8,1.66750607]
[1757459259640,0.235,4319.4,4318.8,1.66750607]
[1757459259941,0.4293,4319.4,4319.3,1.24138539]
[1757459260241,0.3131,4319.9,4318.9,1.66750607]
[1757459260432,0.5481,4319.8,4319.3,1.24123221]
[1757459260741,0.235,4319.8,4319.4,1.24123221]
[1757459261034,0.3131,4319.7,4319.4,1.24123221]
[1757459261241,0.235,4319.8,4319.4,1.24123221]
[1757459261636,0.3131,4319.9,4319.5,1.24123221]
[1757459262938,0.3131,4319.8,4319.5,1.24123221]
[1757459263444,0.3518,4320.0,4319.5,1.24123221]
[1757459263945,0.3131,4319.8,4319.5,1.24123221]
[1757459264243,0.1168,4320.0,4319.5,1.24123221]
[1757459264439,0.3131,4319.9,4319.5,1.24123221]
[1757459264643,0.1168,4320.0,4319.5,1.24123221]
[1757459264940,0.3111,4320.0,4319.5,1.24123221]
[1757459265141,0.1168,4320.0,4319.5,1.24123221]
[1757459265540,0.3111,4320.0,4319.5,1.24123221]
[1757459265935,0.3131,4319.9,4319.5,1.24123221]
[1757459266248,0.1168,4320.0,4319.5,1.24123221]
[1757459266744,0.3091,4319.9,4319.5,1.24123221]
[1757459266940,0.235,4320.1,4319.5,1.24123221]
[1757459267134,0.3091,4319.9,4319.5,1.24123221]
[1757459268345,0.3091,4319.8,4319.5,1.24123221]
[1757459268545,0.3091,4319.9,4319.5,1.24123221]
[1757459268744,0.3091,4319.8,4319.5,1.24123221]
[1757459268940,0.4132,4319.6,4319.4,1.24123221]
[1757459269145,0.1245,4320.0,4319.4,1.24123221]
[1757459269146,0.8468,4319.5,4319.4,1.24123221]
[1757459269448,0.3091,4319.4,4319.0,1.66750607]
[1757459269643,0.2015,4319.3,4319.0,1.66750607]
[1757459269844,0.326,4319.5,4319.0,1.66750607]
[1757459270143,0.8468,4319.5,4319.4,1.24130384]
[1757459270338,0.5377,4319.5,4319.0,1.66750607]
[1757459270543,0.3091,4319.5,4319.0,1.66750607]
[1757459270849,0.2015,4319.4,4319.0,1.66750607]
[1757459271147,0.326,4319.5,4319.0,1.66750607]
[1757459271347,0.2015,4319.4,4319.0,1.66750607]
[1757459271550,0.1245,4319.5,4319.0,1.66750607]
[1757459271747,0.3091,4319.4,4319.0,1.66750607]
[1757459272144,0.3091,4319.3,4319.0,1.66750607]
[1757459272343,0.326,4319.5,4319.0,1.66750607]
[1757459272544,0.5106,4319.4,4319.0,1.66750607]
[1757459272850,0.326,4319.5,4319.0,1.66750607]
[1757459273042,0.3091,4319.4,4319.0,1.66750607]
[1757459273350,0.1245,4319.5,4318.5,2.07086505]
[1757459273351,0.5106,4319.2,4319.1,1.66750607]
[1757459274550,0.2015,4319.2,4318.7,2.07086505]
[1757459274751,0.5106,4319.4,4318.7,2.07086505]
[1757459274947,0.2015,4319.4,4319.2,1.65801955]
[1757459275250,0.7223,4319.3,4319.2,1.65801955]
[1757459275454,0.2015,4318.8,4318.7,1.65801955]
[1757459275753,0.2015,4318.9,4318.3,2.07086505]
[1757459275943,0.5106,4318.9,4318.8,1.6597277]
[1757459276443,0.5106,4318.9,4318.4,2.07086505]
[1757459276644,0.326,4319.0,4318.4,2.07086505]
[1757459276850,0.5377,4319.0,4318.9,1.66055338]
[1757459277250,0.8468,4319.0,4318.9,1.66055338]
[1757459278450,0.3091,4318.9,4318.8,1.66055338]
[1757459278654,0.5106,4318.9,4318.8,1.66055338]
[1757459284359,0.4132,4318.9,4318.6,1.66055338]
[1757459284550,0.5106,4318.7,4318.6,1.66055338]
[1757459285257,0.3091,4318.7,4318.6,1.66055338]
[1757459286055,0.3091,4318.9,4318.6,1.66055338]
[1757459286360,0.5431,4319.9,4318.5,0.234]
[1757459286653,0.5106,4319.8,4319.7,1.24466849]
[1757459287054,0.3091,4319.7,4319.4,1.65955799]
[1757459287255,0.56,4320.0,4319.4,1.65955799]
[1757459287456,0.8691,4320.0,4319.9,1.24442456]
[1757459288053,0.8691,4320.0,4319.9,1.52897308]
[1757459288254,1.0808,4320.0,4319.9,1.52897308]
[1757459289062,0.4336,4320.0,4319.9,1.52897308]
[1757459291366,0.6351,4320.0,4319.9,1.52897308]
[1757459292865,0.6351,4320.0,4319.9,0.28454852]
[1757459293563,0.4336,4320.0,4319.9,0.28454852]
[1757459299365,0.8433,4320.0,4319.9,0.28454852]
[1757459300674,0.6477,4320.0,4319.9,0.28454852]
[1757459301568,0.6535,4320.0,4319.9,0.28415616]
[1757459302572,0.4394,4320.0,4319.9,0.28415616]
[1757459302962,0.3585,4320.5,4319.9,0.28415616]
[1757459303275,0.3585,4320.5,4320.0,1.94371415]
[1757459303474,0.3585,4320.5,4320.1,0.28415616]
[1757459303674,0.3149,4320.3,4320.2,1.94371415]
[1757459305279,0.3149,4320.3,4320.2,0.28415616]
[1757459307676,0.529,4320.3,4320.2,0.28415616]
[1757459310279,0.3149,4320.3,4320.2,0.28415616]
[1757459310586,0.529,4320.3,4320.2,0.28415616]
[1757459310782,0.7246,4320.3,4320.2,0.28415616]
[1757459312785,0.7246,4320.3,4320.2,0.28386559]
[1757459314389,0.7246,4320.3,4320.2,1.94342358]
[1757459315193,0.7246,4320.3,4320.2,0.28386559]
[1757459321789,0.1177,4320.0,4319.9,1.06246505]
[1757459321996,0.3517,4320.0,4318.7,0.2922]
[1757459322298,0.23152,4319.9,4319.2,1.24493812]
[1757459322898,0.75602761,4319.8,4318.9,0.2922]
[1757459323093,0.23152,4319.7,4318.9,0.2922]
[1757459323291,0.23151001,4319.9,4318.9,0.2922]
[1757459323492,0.23151001,4319.9,4319.0,0.126]
[1757459323698,0.23151001,4319.8,4319.0,0.126]
[1757459323895,0.23151001,4319.9,4319.0,0.126]
[1757459324096,0.236,4319.8,4319.1,0.4924]
[1757459324399,0.236,4319.8,4319.1,0.2922]
[1757459324591,0.46751001,4319.8,4319.1,0.2002]
[1757459324791,0.236,4319.8,4319.2,0.2922]
[1757459325692,33.341,4320.3,4319.3,0.4924]
[1757459325888,0.87822907,4320.2,4319.6,0.2922]
[1757459326092,0.236,4320.2,4319.7,0.2922]
[1757459326289,0.236,4320.2,4319.8,0.2922]
[1757459326497,33.341,4320.3,4319.6,0.2922]
[1757459326696,0.236,4320.2,4319.6,0.2002]
[1757459326992,0.236,4320.2,4319.5,0.3246]
[1757459327194,0.236,4320.2,4319.6,0.1986]
[1757459327397,0.236,4320.2,4319.7,0.4901]
[1757459327599,0.236,4320.2,4319.6,0.2915]
[1757459327800,0.236,4320.2,4319.6,0.4901]
[1757459327996,0.236,4320.2,4319.7,0.2915]
[1757459328192,0.236,4320.2,4319.7,0.1986]
[1757459328397,0.236,4320.2,4319.6,0.2915]
[1757459328592,0.236,4320.2,4319.6,0.4901]
[1757459328802,0.236,4320.2,4319.7,0.1986]
[1757459328999,0.236,4320.2,4319.5,0.126]
[1757459329000,0.236,4320.2,4319.6,0.2915]
[1757459329602,0.236,4320.2,4319.7,0.1986]
[1757459329802,0.236,4320.2,4319.9,0.2915]
[1757459330105,0.236,4320.2,4320.1,0.2915]
[1757459330600,33.341,4320.3,4320.1,0.2915]
[1757459330799,0.236,4320.2,4320.1,0.4901]
[1757459339795,0.236,4320.2,4320.1,0.7012]
[1757459341504,33.341,4320.3,4320.1,0.4097]
[1757459341800,33.341,4320.3,4320.0,0.1225]
[1757459341801,33.341,4320.3,4320.2,0.4901]
[1757459341997,33.577,4320.3,4320.2,0.4901]
[1757459342702,33.577,4320.3,4320.2,0.7012]
[1757459344503,33.577,4320.3,4320.2,0.2915]
[1757459345008,33.70690103,4320.3,4320.2,0.2915]
[1757459345208,33.70690103,4320.3,4320.2,0.4901]
[1757459345508,33.70692875,4320.3,4320.2,0.4901]
[1757459346103,33.70692875,4320.3,4320.2,0.2915]
[1757459347212,34.24169541,4320.3,4320.2,0.2915]
[1757459349410,34.00569541,4320.3,4320.2,0.2915]
[1757459349611,34.24169541,4320.3,4320.2,0.2915]
[1757459350506,34.24169541,4320.3,4319.5,0.6161]
[1757459350706,34.24169541,4320.3,4319.5,0.3246]
[1757459350707,0.66469541,4320.2,4319.5,0.3246]
[1757459350906,0.90069541,4320.1,4319.6,0.1986]
[1757459351110,0.12992875,4320.0,4319.7,0.4901]
[1757459351311,0.12992875,4320.0,4319.5,0.126]
[1757459351312,0.236,4319.9,4319.8,0.2915]
[1757459351610,0.36592875,4319.9,4319.8,0.2915]
[1757459351914,0.36592875,4319.9,4319.8,0.4901]
[1757459352903,0.90192789,4319.9,4319.8,0.4901]
[1757459356309,0.90192789,4319.9,4319.8,0.7012]
[1757459359411,0.90192789,4319.9,4319.5,0.126]
[1757459359711,0.90192789,4319.9,4319.1,0.3201]
[1757459359712,0.66592789,4319.8,4319.1,0.3201]
[1757459359910,0.66592789,4319.7,4319.2,0.2125]
[1757459360106,34.59132305,4320.3,4319.5,0.444]
[1757459360107,0.90092789,4319.6,4319.5,0.444]
[1757459366812,0.90092789,4319.6,4319.5,0.8631]
[1757459367016,0.77099914,4319.6,4319.5,0.8631]
[1757459367207,0.90124537,4319.6,4319.5,0.8631]
[1757459368319,0.66624537,4319.6,4319.5,0.8631]
[1757459368620,0.36524623,4319.6,4319.5,0.8631]
[1757459370520,0.36524623,4319.6,4319.5,0.6565]
[1757459370721,0.36524623,4319.6,4319.5,0.444]
[1757459371924,0.36524623,4319.6,4319.5,0.6565]
[1757459373320,0.8999678,4319.6,4319.5,0.444]
[1757459374120,0.8999678,4319.6,4319.5,0.6565]
[1757459375522,0.8999678,4319.6,4319.5,0.444]
[1757459375717,0.2985,4319.4,4318.5,1.78506188]
[1757459375922,0.1067,4319.5,4318.5,1.78506188]
[1757459375923,0.7131,4318.6,4318.5,0.5451]
[1757459376117,0.9481,4318.6,4318.5,0.5451]
[1757459376317,0.7131,4318.6,4318.5,0.5451]
[1757459376616,0.235,4318.6,4318.5,0.5451]
[1757459378021,0.7457,4318.6,4318.5,0.8652]
[1757459380321,0.7457,4318.6,4318.5,0.5326]
[1757459380322,0.9481,4318.6,4318.5,0.5326]
[1757459380724,0.9481,4318.6,4318.1,0.3201]
[1757459383223,0.9481,4318.6,4318.0,0.1225]
[1757459383224,0.7131,4318.1,4318.0,0.335]
[1757459383827,0.7131,4318.1,4318.0,0.8617]
[1757459385328,0.4146,4318.1,4318.0,0.8617]
[1757459385925,0.5107,4318.6,4318.5,0.543]
[1757459386118,0.121,4318.6,4318.5,0.8631]
[1757459386927,1.37372305,4320.0,4318.6,0.322]
[1757459387131,1.4226468,4319.9,4318.6,0.322]
[1757459387325,0.2921,4319.7,4318.6,0.322]
[1757459387626,0.6640268,4319.8,4319.5,0.5238]
[1757459387627,1.3656268,4319.6,4319.5,0.5238]
[1757459389431,1.3656268,4319.6,4319.5,0.322]
[1757459389627,1.3656268,4319.6,4319.1,0.322]
[1757459389824,0.5002,4319.2,4319.1,0.7249]
[1757459390028,0.86525769,4319.2,4319.1,0.7249]
[1757459390531,0.86525769,4319.2,4319.1,1.04051502]
[1757459391230,0.57315769,4319.2,4319.1,1.04051502]
[1757459392336,1.10735494,4319.2,4319.1,1.04051502]
[1757459393030,1.39945494,4319.2,4319.1,1.04051502]
[1757459393230,1.60085494,4319.2,4319.1,1.04051502]
[1757459393635,1.60085494,4319.2,4319.1,0.31561502]
[1757459394629,1.60085494,4319.2,4318.6,0.322]
[1757459394930,0.7016,4318.8,4318.7,0.83948491]
[1757459395332,0.4095,4318.8,4318.7,0.7249]
[1757459396135,0.7016,4318.8,4318.7,0.7249]
[1757459398133,0.7016,4319.4,4319.3,0.5238]
[1757459398332,1.60100484,4319.4,4319.3,0.322]
[1757459398535,1.60100484,4319.4,4319.1,0.322]
[1757459398734,0.7016,4319.1,4319.0,0.3262]
[1757459398933,1.36600484,4319.1,4319.0,0.3262]
[1757459399437,1.36600484,4319.1,4319.0,0.6482]
[1757459400337,1.60100484,4319.1,4319.0,0.6482]
[1757459400533,1.60100484,4319.1,4319.0,0.5238]
[1757459400839,0.7016,4318.7,4318.6,0.5238]
[1757459401433,0.83172209,4318.7,4318.1,0.322]
[1757459401631,0.7016,4318.7,4318.1,0.322]
[1757459401836,0.7016,4318.2,4318.1,0.5238]
[1757459402033,0.8426,4318.2,4318.1,0.5238]
[1757459402432,0.8426,4318.2,4318.1,0.7249]
[1757459402628,0.7016,4318.2,4318.1,0.7249]
[1757459402834,0.5595,4318.2,4318.1,0.7249]
[1757459404431,0.8516,4318.2,4318.1,0.322]
[1757459404630,0.98177225,4318.2,4318.1,0.322]
[1757459404836,0.98177225,4318.2,4317.6,0.322]
[1757459405031,0.8516,4318.2,4317.6,0.322]
[1757459405834,0.7016,4317.7,4317.6,0.5238]
[1757459406736,1.36675879,4317.7,4317.1,0.322]
[1757459406938,0.7016,4317.5,4317.4,0.5238]
[1757459407134,1.36679439,4317.5,4317.4,0.7249]
[1757459407329,0.83178393,4317.5,4317.4,0.7249]
[1757459407634,0.7016,4317.5,4317.4,0.7249]
[1757459407836,0.93850477,4317.5,4317.1,0.322]
[1757459408133,0.2081,4316.7,4316.6,0.7249]
[1757459408339,0.7016,4316.7,4316.6,0.7249]
[1757459408736,0.4095,4316.7,4316.6,0.7249]
[1757459410441,0.7016,4316.7,4316.6,0.7249]
[1757459411739,0.4095,4316.7,4316.6,0.7249]
[1757459412546,0.7016,4316.7,4316.6,0.7249]
[1757459418051,0.9356,4316.7,4316.6,0.7249]
[1757459419053,0.6435,4316.7,4316.6,0.7249]
[1757459419254,0.4421,4316.7,4316.6,0.7249]
[1757459419448,33.671,4317.3,4317.0,0.1176]
[1757459419651,34.0826,4317.3,4317.2,0.7068]
[1757459420445,33.366,4317.3,4317.2,1.02346833]
[1757459420653,33.6,4317.3,4317.2,1.02346833]
[1757459421948,33.8059,4317.3,4317.2,1.02346833]
[1757459422150,33.6,4317.3,4317.2,1.02346833]
[1757459422348,0.29999908,4318.5,4317.2,1.02346833]
[1757459422349,0.7166,4318.3,4318.2,0.7068]
[1757459422549,0.7166,4318.3,4318.2,1.02346833]
[1757459422749,0.6456,4318.3,4318.2,1.02346833]
[1757459425849,33.5749,4318.7,4318.6,0.7068]
[1757459426050,33.8089,4318.7,4318.6,1.02346833]
[1757459426251,34.3196,4318.7,4318.6,1.02346833]
[1757459430257,33.7806,4318.7,4318.6,1.02346833]
[1757459430447,33.369,4318.7,4318.6,1.02346833]
[1757459430649,0.7166,4319.7,4319.6,0.2061]
[1757459430853,0.9506,4319.7,4319.6,0.7068]
[1757459431249,0.9506,4319.7,4319.6,1.0233905]
[1757459431448,0.4116,4319.7,4319.6,1.0233905]
[1757459431956,0.7166,4320.0,4319.9,0.7068]
[1757459432157,0.9506,4320.0,4319.9,1.0233905]
[1757459433152,0.7166,4320.0,4319.9,1.0233905]
[1757459433349,0.9506,4320.0,4319.9,1.0233905]
[1757459434163,33.365,4320.2,4320.0,0.4152]
[1757459434459,33.5709,4320.2,4320.1,1.0233905]
[1757459434760,33.8049,4320.2,4320.1,1.0233905]
[1757459435952,34.3156,4320.2,4320.1,1.0233905]
[1757459438562,34.3156,4320.2,4320.1,1.02195103]
[1757459441368,34.3156,4320.2,4320.1,0.81885103]
[1757459443467,34.3156,4320.2,4320.1,0.31515103]
[1757459445771,34.0816,4320.2,4320.1,0.61275103]
[1757459445969,34.0816,4320.2,4320.1,0.81885103]
[1757459445970,34.3156,4320.2,4320.1,0.81885103]
[1757459446171,34.0816,4320.2,4320.1,0.81885103]
[1757459446372,34.3156,4320.2,4320.1,0.81885103]
[1757459448478,34.3156,4320.2,4320.1,0.31515103]
[1757459449273,34.3119,4320.2,4320.1,0.82065103]
[1757459450270,34.3119,4320.2,4320.1,0.31515103]
[1757459450466,34.3119,4320.2,4319.9,0.3016]
[1757459450984,34.3119,4320.2,4319.6,0.3016]
[1757459451378,34.3119,4320.2,4319.8,0.3016]
[1757459451986,34.3119,4320.2,4319.6,0.3016]
[1757459452191,34.3119,4320.2,4319.6,0.53309]
[1757459452394,0.211,4319.7,4319.6,0.6996]
[1757459452588,0.7393,4319.7,4319.6,0.6996]
[1757459455590,0.9469,4319.7,4319.6,0.6996]
[1757459456695,0.234,4319.7,4319.6,0.6996]
[1757459458491,33.365,4320.2,4319.7,0.3016]
[1757459458492,33.6593,4320.2,4319.7,0.3016]
[1757459458697,33.6593,4320.2,4320.1,0.3016]
[1757459458698,33.365,4320.2,4320.1,0.3016]
[1757459458994,0.234,4320.2,4320.1,0.6996]
[1757459460300,0.211,4320.6,4320.5,0.5145]
[1757459460495,0.9469,4320.6,4320.5,0.5145]
[1757459460995,0.9469,4320.6,4320.5,0.8161]
[1757459462386,0.9469,4320.6,4320.5,0.3016]
[1757459466494,0.9469,4320.6,4320.5,0.5055]
[1757459466690,0.2943,4320.9,4320.5,0.8161]
[1757459466998,0.445,4320.8,4320.7,0.6996]
[1757459467196,0.9469,4320.8,4320.7,0.6996]
[1757459468897,0.7129,4320.8,4320.7,0.6996]
[1757459469097,0.9469,4320.8,4320.7,0.6996]
[1757459469297,0.9469,4320.8,4320.7,0.5055]
[1757459471492,0.9469,4320.8,4320.7,0.6996]
[1757459471699,33.348,4321.6,4320.7,0.398]
[1757459471900,0.211,4320.9,4320.8,0.6996]
[1757459472095,0.445,4320.9,4320.8,0.6996]
[1757459472505,0.9469,4320.9,4320.8,0.6996]
[1757459475505,0.9469,4320.9,4320.8,0.5055]
[1757459476305,0.9469,4320.9,4320.8,0.6996]
[1757459477801,0.7129,4320.9,4320.8,0.6996]
[1757459478005,0.9469,4320.9,4320.8,0.6996]
[1757459479205,0.6526,4320.9,4320.8,0.6996]
[1757459480103,0.9683,4320.9,4320.8,0.6996]
[1757459480303,0.9683,4320.9,4320.8,0.5055]
[1757459480602,0.9683,4320.9,4320.8,0.5035]
[1757459483310,0.9683,4320.9,4320.8,0.6981]
[1757459487612,1.85940355,4320.9,4320.3,0.31957355]
[1757459487915,1.19975,4320.9,4320.3,0.31957355]
[1757459488104,0.12568951,4320.8,4320.3,0.31957355]
[1757459488310,0.7223,4320.4,4320.3,0.52147355]
[1757459488506,0.9563,4320.4,4320.3,0.00347355]
[1757459488813,0.9563,4320.4,4320.3,0.52147355]
[1757459492713,0.7223,4320.4,4320.3,0.52147355]
[1757459492916,0.6406,4320.4,4320.3,0.71607355]
[1757459494414,0.1068,4321.5,4320.3,0.71607355]
[1757459494615,0.1982,4320.7,4320.6,0.7126]
[1757459494815,0.55783396,4320.7,4320.6,0.7126]
[1757459495020,1.61639989,4320.7,4320.6,0.7126]
[1757459497922,1.61639989,4320.7,4320.6,0.518]
[1757459499323,1.61639989,4320.7,4320.6,0.3161]
[1757459499518,0.1085,4320.5,4320.3,0.00347355]
[1757459499719,0.7223,4320.4,4320.3,0.00347355]
[1757459500510,1.38230175,4320.4,4320.3,0.00347355]
[1757459505533,1.61630175,4320.4,4320.3,0.00347355]
[1757459508524,1.61630175,4320.4,4320.3,0.30357355]
[1757459510529,1.61630175,4320.4,4320.3,0.00347355]
[1757459511533,1.61630175,4320.4,4320.3,0.30357355]
[1757459511735,1.08191094,4320.4,4320.3,0.50637355]
[1757459512029,1.08191094,4320.4,4320.3,0.70777355]
[1757459512931,1.61593533,4320.4,4320.3,0.70777355]
[1757459513232,1.61596429,4320.4,4320.3,0.70777355]
[1757459513432,1.08191094,4320.4,4320.3,0.70777355]
[1757459513626,1.08191094,4320.4,4320.3,0.50637355]
[1757459513828,1.6159606,4320.4,4320.3,0.50637355]
[1757459515332,1.6159606,4320.4,4320.3,0.30357355]
[1757459515636,1.6159606,4320.4,4320.3,0.00347355]
[1757459517235,1.3819606,4320.4,4320.3,0.30357355]
[1757459517435,1.6159606,4320.4,4320.3,0.30357355]
[1757459520235,1.6159606,4320.4,4320.3,0.00347355]
[1757459521438,1.6159606,4320.4,4320.3,0.30357355]
[1757459521631,1.6159606,4320.4,4320.3,0.00347355]
[1757459522036,1.49034966,4320.4,4320.3,0.00347355]
[1757459522235,1.61598733,4320.4,4320.3,0.30357355]
[1757459523136,1.61598733,4320.4,4320.3,0.00347355]